[Event "*** Titled Tuesday Blitz"]
[Site "Chess.com"]
[Date "2019.02.05"]
[Round "3"]
[White "CalinGheorghiu"]
[Black "ShadyH9"]
[Result "1/2-1/2"]
[WhiteElo "2240"]
[BlackElo "2302"]
[TimeControl "180+2"]
[EndTime "13:37:20 PST"]
[Termination "Game drawn by stalemate"]

1. d4 {[%clk 0:01:52.2]} 1... Nf6 {[%clk 0:02:59.6]} 2. c4 {[%clk 0:01:53.3]}
2... g6 {[%clk 0:03:00.7]} 3. f3 {[%clk 0:01:54]} 3... Bg7 {[%clk 0:03:00.7]} 4.
e4 {[%clk 0:01:55.1]} 4... d6 {[%clk 0:03:01.7]} 5. Nc3 {[%clk 0:01:55.4]} 5...
O-O {[%clk 0:03:02.9]} 6. Be3 {[%clk 0:01:55.5]} 6... Nc6 {[%clk 0:03:03.5]} 7.
Qd2 {[%clk 0:01:54.9]} 7... a6 {[%clk 0:03:04.4]} 8. Nge2 {[%clk 0:01:55.8]}
8... Na5 {[%clk 0:03:05.1]} 9. Nc1 {[%clk 0:01:55.7]} 9... Nd7 {[%clk
0:03:04.5]} 10. Nb3 {[%clk 0:01:51.6]} 10... c5 {[%clk 0:03:04.3]} 11. Be2
{[%clk 0:01:45.4]} 11... Nxb3 {[%clk 0:03:01.2]} 12. axb3 {[%clk 0:01:45.9]}
12... cxd4 {[%clk 0:03:02.1]} 13. Bxd4 {[%clk 0:01:46.8]} 13... Nc5 {[%clk
0:03:03.5]} 14. Ra3 {[%clk 0:01:47.6]} 14... Be6 {[%clk 0:02:57.3]} 15. O-O
{[%clk 0:01:47.5]} 15... a5 {[%clk 0:02:35.4]} 16. Nd5 {[%clk 0:01:43.6]} 16...
Bxd5 {[%clk 0:02:32.7]} 17. exd5 {[%clk 0:01:33.1]} 17... Qb6 {[%clk 0:02:09.9]}
18. Rd1 {[%clk 0:01:12.5]} 18... Bxd4+ {[%clk 0:02:06.8]} 19. Qxd4 {[%clk
0:01:13.2]} 19... Nd7 {[%clk 0:02:08.1]} 20. Qxb6 {[%clk 0:01:02.7]} 20... Nxb6
{[%clk 0:02:10]} 21. Rda1 {[%clk 0:01:03.8]} 21... Ra6 {[%clk 0:01:40.1]} 22.
Rxa5 {[%clk 0:01:01.4]} 22... Rfa8 {[%clk 0:01:39.8]} 23. b4 {[%clk 0:00:42.3]}
23... Nd7 {[%clk 0:01:36.9]} 24. Kf2 {[%clk 0:00:38.8]} 24... Kf8 {[%clk
0:01:33.6]} 25. Ke3 {[%clk 0:00:39.4]} 25... Ke8 {[%clk 0:01:34.1]} 26. Ke4
{[%clk 0:00:35.6]} 26... Kd8 {[%clk 0:01:34.6]} 27. Kd4 {[%clk 0:00:36.9]} 27...
Kc7 {[%clk 0:01:34.6]} 28. Rxa6 {[%clk 0:00:37.8]} 28... Rxa6 {[%clk 0:01:20.3]}
29. Rxa6 {[%clk 0:00:37.8]} 29... bxa6 {[%clk 0:01:22.2]} 30. c5 {[%clk
0:00:39.7]} 30... Nb8 {[%clk 0:01:13.3]} 31. h4 {[%clk 0:00:37.7]} 31... h6
{[%clk 0:01:01]} 32. f4 {[%clk 0:00:32.9]} 32... e6 {[%clk 0:00:51.3]} 33. dxe6
{[%clk 0:00:30]} 33... fxe6 {[%clk 0:00:52.3]} 34. Bd3 {[%clk 0:00:31.5]} 34...
Nc6+ {[%clk 0:00:52.5]} 35. Kc3 {[%clk 0:00:31.4]} 35... Ne7 {[%clk 0:00:41.3]}
36. cxd6+ {[%clk 0:00:23.3]} 36... Kxd6 {[%clk 0:00:41.5]} 37. g3 {[%clk
0:00:22.8]} 37... Nd5+ {[%clk 0:00:36.7]} 38. Kb3 {[%clk 0:00:23.5]} 38... Ne7
{[%clk 0:00:24.4]} 39. Bxa6 {[%clk 0:00:24.1]} 39... Nf5 {[%clk 0:00:24.6]} 40.
Bd3 {[%clk 0:00:24.8]} 40... Nxg3 {[%clk 0:00:24.2]} 41. Bxg6 {[%clk 0:00:25.7]}
41... Ne2 {[%clk 0:00:24.1]} 42. f5 {[%clk 0:00:26.5]} 42... exf5 {[%clk
0:00:25.1]} 43. Kc4 {[%clk 0:00:26.3]} 43... f4 {[%clk 0:00:25.5]} 44. Bh5
{[%clk 0:00:27.4]} 44... Ng1 {[%clk 0:00:20]} 45. Kd3 {[%clk 0:00:24.7]} 45...
Kc6 {[%clk 0:00:20.6]} 46. Ke4 {[%clk 0:00:24.4]} 46... Kb5 {[%clk 0:00:21.2]}
47. Kxf4 {[%clk 0:00:24.6]} 47... Kxb4 {[%clk 0:00:21.9]} 48. Kg3 {[%clk
0:00:24.7]} 48... Kb3 {[%clk 0:00:21.5]} 49. Kf2 {[%clk 0:00:25.3]} 49... Kxb2
{[%clk 0:00:23.4]} 50. Kxg1 {[%clk 0:00:26.3]} 50... Kc3 {[%clk 0:00:25.1]} 51.
Kf2 {[%clk 0:00:27.8]} 51... Kd4 {[%clk 0:00:27]} 52. Kf3 {[%clk 0:00:29.4]}
52... Ke5 {[%clk 0:00:28.9]} 53. Kg4 {[%clk 0:00:30.2]} 53... Kf6 {[%clk
0:00:30.8]} 54. Kf4 {[%clk 0:00:31.6]} 54... Kg7 {[%clk 0:00:32.7]} 55. Ke5
{[%clk 0:00:32.8]} 55... Kh7 {[%clk 0:00:34.6]} 56. Kf6 {[%clk 0:00:33.5]} 56...
Kh8 {[%clk 0:00:35.3]} 57. Kg6 {[%clk 0:00:34.6]} 57... Kg8 {[%clk 0:00:36.4]}
58. Kxh6 {[%clk 0:00:34.5]} 58... Kh8 {[%clk 0:00:38.3]} 59. Bf7 {[%clk
0:00:35.3]} 1/2-1/2

[Event "*** Titled Tuesday Blitz"]
[Site "Chess.com"]
[Date "2019.02.05"]
[Round "3"]
[White "WorldChampionBulletChess"]
[Black "Walter_White_Poland"]
[Result "1-0"]
[WhiteElo "2121"]
[BlackElo "2132"]
[TimeControl "180+2"]
[EndTime "13:37:21 PST"]
[Termination "WorldChampionBulletChess won by resignation"]

1. d4 {[%clk 0:03:01.9]} 1... Nf6 {[%clk 0:02:59.5]} 2. e3 {[%clk 0:03:03.2]}
2... c5 {[%clk 0:02:59.8]} 3. Nf3 {[%clk 0:03:03.9]} 3... b6 {[%clk 0:02:53.2]}
4. c3 {[%clk 0:03:04.9]} 4... Bb7 {[%clk 0:02:53.6]} 5. Be2 {[%clk 0:03:06.4]}
5... d6 {[%clk 0:02:54.2]} 6. O-O {[%clk 0:03:06.9]} 6... g6 {[%clk 0:02:55.4]}
7. Re1 {[%clk 0:03:07.5]} 7... Bg7 {[%clk 0:02:56.4]} 8. b3 {[%clk 0:03:07.2]}
8... O-O {[%clk 0:02:56.6]} 9. Bb2 {[%clk 0:03:08.6]} 9... Qc7 {[%clk
0:02:56.7]} 10. Nbd2 {[%clk 0:03:09.9]} 10... Nbd7 {[%clk 0:02:51.4]} 11. Bf1
{[%clk 0:03:06.8]} 11... e5 {[%clk 0:02:50.8]} 12. dxe5 {[%clk 0:03:07.2]} 12...
dxe5 {[%clk 0:02:51.4]} 13. e4 {[%clk 0:03:08.3]} 13... Rad8 {[%clk 0:02:49.1]}
14. Qc2 {[%clk 0:03:06.5]} 14... a6 {[%clk 0:02:43.1]} 15. Rad1 {[%clk
0:03:04.3]} 15... b5 {[%clk 0:02:30.3]} 16. g3 {[%clk 0:02:50]} 16... Rfe8
{[%clk 0:02:31]} 17. Bg2 {[%clk 0:02:50.2]} 17... Nf8 {[%clk 0:02:24.6]} 18. a3
{[%clk 0:02:43.5]} 18... Ne6 {[%clk 0:02:24.4]} 19. h3 {[%clk 0:02:35.4]} 19...
Qb8 {[%clk 0:02:23.8]} 20. Kh2 {[%clk 0:02:36]} 20... Bc6 {[%clk 0:02:10]} 21.
c4 {[%clk 0:02:27.4]} 21... Nd4 {[%clk 0:01:55.1]} 22. Nxd4 {[%clk 0:02:27.2]}
22... cxd4 {[%clk 0:01:56.1]} 23. c5 {[%clk 0:02:00.4]} 23... Qb7 {[%clk
0:01:55]} 24. b4 {[%clk 0:01:59.4]} 24... Nh5 {[%clk 0:01:53.5]} 25. Qb3 {[%clk
0:01:47.1]} 25... Kh8 {[%clk 0:01:44.8]} 26. Bf3 {[%clk 0:01:41.7]} 26... Nf6
{[%clk 0:01:26.7]} 27. Ba1 {[%clk 0:01:27.6]} 27... Rf8 {[%clk 0:01:27.3]} 28.
Re2 {[%clk 0:01:18.9]} 28... Rde8 {[%clk 0:01:27.4]} 29. Rde1 {[%clk 0:01:18.3]}
29... Nd7 {[%clk 0:01:28.2]} 30. Bg4 {[%clk 0:01:19.3]} 30... f5 {[%clk
0:01:23.6]} 31. exf5 {[%clk 0:01:21.2]} 31... gxf5 {[%clk 0:01:24.8]} 32. Bh5
{[%clk 0:01:22.3]} 32... e4 {[%clk 0:01:18.4]} 33. Bxe8 {[%clk 0:01:19.4]} 33...
Rxe8 {[%clk 0:01:19.5]} 34. Qf7 {[%clk 0:01:14.4]} 34... Rf8 {[%clk 0:01:09.2]}
35. Qe7 {[%clk 0:01:09.3]} 35... Bd5 {[%clk 0:00:57.2]} 36. h4 {[%clk
0:00:37.3]} 36... Bf6 {[%clk 0:00:53.9]} 37. Qd6 {[%clk 0:00:37.2]} 37... Be5
{[%clk 0:00:54.4]} 38. Qh6 {[%clk 0:00:37.7]} 38... e3 {[%clk 0:00:51.6]} 39.
fxe3 {[%clk 0:00:36.9]} 39... Bxg3+ {[%clk 0:00:52.6]} 40. Kxg3 {[%clk
0:00:34.4]} 40... Rg8+ {[%clk 0:00:53.4]} 41. Kh2 {[%clk 0:00:32.7]} 41... Rg6
{[%clk 0:00:44.5]} 42. Bxd4+ {[%clk 0:00:33.1]} 42... Kg8 {[%clk 0:00:45]} 43.
Qf4 {[%clk 0:00:30.7]} 43... Rg4 {[%clk 0:00:44.4]} 44. Rg1 {[%clk 0:00:24.1]}
44... Rxg1 {[%clk 0:00:42.7]} 45. Kxg1 {[%clk 0:00:26]} 45... Nf8 {[%clk
0:00:36.8]} 46. Qg5+ {[%clk 0:00:22.7]} 46... Kf7 {[%clk 0:00:32.8]} 47. Qg7+
{[%clk 0:00:22.3]} 47... Ke8 {[%clk 0:00:33.8]} 48. Qxb7 {[%clk 0:00:21.6]}
48... Bxb7 {[%clk 0:00:35]} 49. e4 {[%clk 0:00:23.1]} 49... f4 {[%clk
0:00:35.2]} 50. Nf3 {[%clk 0:00:21.9]} 50... Ne6 {[%clk 0:00:35.6]} 51. Kf2
{[%clk 0:00:21.6]} 51... Ke7 {[%clk 0:00:35.6]} 52. Rd2 {[%clk 0:00:21.7]} 52...
Kf7 {[%clk 0:00:34.6]} 53. e5 {[%clk 0:00:21.5]} 53... Kg6 {[%clk 0:00:34.8]}
54. Ng5 {[%clk 0:00:21.5]} 54... Nxg5 {[%clk 0:00:32.1]} 55. hxg5 {[%clk
0:00:23.4]} 55... Kxg5 {[%clk 0:00:33.3]} 56. e6 {[%clk 0:00:24.7]} 56... Kf5
{[%clk 0:00:34]} 57. e7 {[%clk 0:00:25.3]} 57... Bc6 {[%clk 0:00:35.1]} 58. Bg7
{[%clk 0:00:21.4]} 58... h5 {[%clk 0:00:35]} 59. Rd8 {[%clk 0:00:20.7]} 1-0

[Event "*** Titled Tuesday Blitz"]
[Site "Chess.com"]
[Date "2019.02.05"]
[Round "3"]
[White "nochewycandy"]
[Black "Orest_Vovk"]
[Result "1-0"]
[WhiteElo "2313"]
[BlackElo "2236"]
[TimeControl "180+2"]
[EndTime "13:37:28 PST"]
[Termination "nochewycandy won by resignation"]

1. e4 {[%clk 0:03:01.9]} 1... c5 {[%clk 0:02:58.6]} 2. Nf3 {[%clk 0:03:02.9]}
2... Nc6 {[%clk 0:02:57.7]} 3. Bb5 {[%clk 0:03:04.5]} 3... g5 {[%clk 0:02:57.5]}
4. Nxg5 {[%clk 0:02:58.4]} 4... Nf6 {[%clk 0:02:57.5]} 5. d3 {[%clk 0:02:49.8]}
5... a6 {[%clk 0:02:45.6]} 6. Bxc6 {[%clk 0:02:50.5]} 6... dxc6 {[%clk
0:02:46.4]} 7. h3 {[%clk 0:02:35.8]} 7... c4 {[%clk 0:02:44.4]} 8. e5 {[%clk
0:02:32]} 8... h6 {[%clk 0:01:49.5]} 9. Nf3 {[%clk 0:02:33]} 9... Nd5 {[%clk
0:01:43.2]} 10. dxc4 {[%clk 0:02:34]} 10... Nb4 {[%clk 0:01:43.2]} 11. Qxd8+
{[%clk 0:02:34.1]} 11... Kxd8 {[%clk 0:01:45.1]} 12. Na3 {[%clk 0:02:29.7]}
12... Bf5 {[%clk 0:01:41.3]} 13. Nd4 {[%clk 0:02:29.8]} 13... Be4 {[%clk
0:01:35.9]} 14. f3 {[%clk 0:02:30.6]} 14... Bh7 {[%clk 0:01:35]} 15. c3 {[%clk
0:02:05.7]} 15... Nd3+ {[%clk 0:01:34]} 16. Ke2 {[%clk 0:02:06.9]} 16... Nxe5
{[%clk 0:01:26.6]} 17. Bf4 {[%clk 0:01:57.2]} 17... Bg7 {[%clk 0:01:22.7]} 18.
Rhd1 {[%clk 0:01:51]} 18... Ke8 {[%clk 0:01:19.3]} 19. Rac1 {[%clk 0:01:38.4]}
19... Rd8 {[%clk 0:01:17.6]} 20. c5 {[%clk 0:01:34.4]} 20... Rd5 {[%clk
0:01:10.9]} 21. b4 {[%clk 0:01:32.4]} 21... Nd3 {[%clk 0:01:04.4]} 22. Rxd3
{[%clk 0:01:31.8]} 22... Bxd3+ {[%clk 0:01:04.7]} 23. Kxd3 {[%clk 0:01:33.2]}
23... e5 {[%clk 0:01:05.4]} 24. Re1 {[%clk 0:01:29.4]} 24... Kd8 {[%clk
0:01:00.7]} 25. Bxe5 {[%clk 0:01:23.3]} 25... Rxe5 {[%clk 0:00:54.2]} 26. Rxe5
{[%clk 0:01:19.4]} 26... Bxe5 {[%clk 0:00:56.1]} 27. Nc4 {[%clk 0:01:20.8]}
27... Bxd4 {[%clk 0:00:53.5]} 28. cxd4 {[%clk 0:01:22.7]} 28... Kc7 {[%clk
0:00:43.8]} 29. g4 {[%clk 0:01:20.2]} 29... h5 {[%clk 0:00:37.7]} 30. g5 {[%clk
0:01:18.7]} 30... h4 {[%clk 0:00:35.7]} 31. f4 {[%clk 0:01:20.1]} 31... f6
{[%clk 0:00:29]} 32. Ke4 {[%clk 0:01:11.8]} 32... fxg5 {[%clk 0:00:29]} 33. fxg5
{[%clk 0:01:13.7]} 33... Kd7 {[%clk 0:00:24.9]} 34. Kf5 {[%clk 0:01:12.2]} 34...
Rf8+ {[%clk 0:00:17.5]} 35. Kg4 {[%clk 0:01:13.2]} 35... Ke6 {[%clk 0:00:16.6]}
36. Kxh4 {[%clk 0:00:52]} 36... Rf4+ {[%clk 0:00:11.7]} 37. Kh5 {[%clk
0:00:52.5]} 37... Rxd4 {[%clk 0:00:12.6]} 38. Ne3 {[%clk 0:00:48.8]} 38... Rxb4
{[%clk 0:00:11.5]} 39. h4 {[%clk 0:00:46.5]} 39... b6 {[%clk 0:00:08.8]} 40.
cxb6 {[%clk 0:00:46]} 40... Rxb6 {[%clk 0:00:10.7]} 41. Kh6 {[%clk 0:00:42.6]}
41... Rb8 {[%clk 0:00:09.2]} 42. g6 {[%clk 0:00:42.1]} 42... Kf6 {[%clk
0:00:05.9]} 43. Ng4+ {[%clk 0:00:42.7]} 43... Kf5 {[%clk 0:00:07]} 44. Ne3+
{[%clk 0:00:39.7]} 44... Kf6 {[%clk 0:00:08.3]} 45. Kh7 {[%clk 0:00:39.8]} 45...
Rb7+ {[%clk 0:00:08.1]} 46. Kh6 {[%clk 0:00:33.6]} 46... c5 {[%clk 0:00:07.8]}
47. h5 {[%clk 0:00:31.1]} 47... Rd7 {[%clk 0:00:05.5]} 48. Ng4+ {[%clk
0:00:20.1]} 48... Kf5 {[%clk 0:00:05.9]} 49. g7 {[%clk 0:00:21.6]} 49... Rd8
{[%clk 0:00:04.3]} 50. Ne3+ {[%clk 0:00:23]} 50... Kf6 {[%clk 0:00:05.3]} 51.
Kh7 {[%clk 0:00:23.4]} 51... Kf7 {[%clk 0:00:06.6]} 52. h6 {[%clk 0:00:24.5]}
52... Rc8 {[%clk 0:00:05.5]} 53. Nc4 {[%clk 0:00:25.5]} 53... Rd8 {[%clk
0:00:04.4]} 54. Ne5+ {[%clk 0:00:21.2]} 54... Ke6 {[%clk 0:00:05.6]} 55. Ng6
{[%clk 0:00:20.5]} 55... c4 {[%clk 0:00:05.9]} 56. Nf8+ {[%clk 0:00:21.9]} 56...
Kd5 {[%clk 0:00:04.8]} 57. g8=Q+ {[%clk 0:00:23.1]} 57... Kd4 {[%clk 0:00:06.7]}
58. Ne6+ {[%clk 0:00:23.5]} 1-0

[Event "*** Titled Tuesday Blitz"]
[Site "Chess.com"]
[Date "2019.02.05"]
[Round "3"]
[White "Sebastian"]
[Black "mousavian_hamed"]
[Result "1-0"]
[WhiteElo "2871"]
[BlackElo "2556"]
[TimeControl "180+2"]
[EndTime "13:37:35 PST"]
[Termination "Sebastian won by resignation"]

1. e4 {[%clk 0:03:01.9]} 1... e6 {[%clk 0:03:00.1]} 2. d4 {[%clk 0:03:02.7]}
2... d5 {[%clk 0:03:00.8]} 3. Nc3 {[%clk 0:03:04.4]} 3... Bb4 {[%clk 0:03:00.2]}
4. e5 {[%clk 0:03:04.9]} 4... c5 {[%clk 0:03:00.2]} 5. dxc5 {[%clk 0:03:06.1]}
5... Ne7 {[%clk 0:02:55.2]} 6. Nf3 {[%clk 0:03:06.2]} 6... Nbc6 {[%clk
0:02:53.8]} 7. Bd3 {[%clk 0:03:05.6]} 7... Ng6 {[%clk 0:02:51]} 8. O-O {[%clk
0:02:59.1]} 8... Bxc5 {[%clk 0:02:51.3]} 9. Re1 {[%clk 0:02:46.5]} 9... O-O
{[%clk 0:02:50.8]} 10. Bg5 {[%clk 0:02:30.8]} 10... Qc7 {[%clk 0:02:49.5]} 11.
Bxg6 {[%clk 0:01:50.4]} 11... fxg6 {[%clk 0:02:49.1]} 12. Be3 {[%clk 0:01:48.8]}
12... Bb4 {[%clk 0:02:36.9]} 13. a3 {[%clk 0:01:19.4]} 13... Bxc3 {[%clk
0:02:36.2]} 14. bxc3 {[%clk 0:01:21.3]} 14... Na5 {[%clk 0:02:24.7]} 15. Bd4
{[%clk 0:01:19.2]} 15... Bd7 {[%clk 0:02:23.5]} 16. h4 {[%clk 0:01:19.6]} 16...
Rf5 {[%clk 0:02:15.3]} 17. Ng5 {[%clk 0:01:18.3]} 17... h6 {[%clk 0:02:12.6]}
18. Nh3 {[%clk 0:01:19]} 18... Raf8 {[%clk 0:02:08.1]} 19. Qd3 {[%clk
0:01:18.9]} 19... a6 {[%clk 0:01:59.5]} 20. a4 {[%clk 0:01:17.9]} 20... Nc4
{[%clk 0:01:58.7]} 21. Qg3 {[%clk 0:01:15.5]} 21... Kh7 {[%clk 0:01:56.2]} 22.
f3 {[%clk 0:01:16.6]} 22... Be8 {[%clk 0:01:50.3]} 23. Re2 {[%clk 0:01:13]}
23... Nb2 {[%clk 0:01:42.7]} 24. a5 {[%clk 0:01:09.3]} 24... Nc4 {[%clk
0:01:43.2]} 25. f4 {[%clk 0:00:59.5]} 25... Nxa5 {[%clk 0:01:42.1]} 26. Qf3
{[%clk 0:00:59.1]} 26... Nc4 {[%clk 0:01:36.3]} 27. g4 {[%clk 0:00:49.3]} 27...
Rxe5 {[%clk 0:01:29.2]} 28. Bxe5 {[%clk 0:00:46.8]} 28... Nxe5 {[%clk
0:01:29.6]} 29. Qg3 {[%clk 0:00:47.3]} 29... Nc4 {[%clk 0:01:25]} 30. Rxe6
{[%clk 0:00:46.7]} 30... Bc6 {[%clk 0:01:22.2]} 31. Rae1 {[%clk 0:00:44]} 31...
Qb6+ {[%clk 0:01:21.6]} 32. Kh2 {[%clk 0:00:42.7]} 32... Qb2 {[%clk 0:01:17.8]}
33. Qd3 {[%clk 0:00:40.3]} 33... Kg8 {[%clk 0:01:12.4]} 34. Re7 {[%clk
0:00:35.8]} 34... Rf7 {[%clk 0:01:03.9]} 35. Qxg6 {[%clk 0:00:31.7]} 35... Rxe7
{[%clk 0:01:01.7]} 36. Rxe7 {[%clk 0:00:31.3]} 36... Qxc3 {[%clk 0:01:03.1]} 37.
Re2 {[%clk 0:00:21.6]} 37... Nd2 {[%clk 0:00:54.4]} 38. Qd3 {[%clk 0:00:17.2]}
38... Nf3+ {[%clk 0:00:49.2]} 39. Kg3 {[%clk 0:00:16.5]} 39... Nd4 {[%clk
0:00:47]} 40. Re7 {[%clk 0:00:15.4]} 40... Qxd3+ {[%clk 0:00:41.6]} 41. cxd3
{[%clk 0:00:16]} 41... a5 {[%clk 0:00:39.9]} 42. Rc7 {[%clk 0:00:16.7]} 42... a4
{[%clk 0:00:39.8]} 43. Rc8+ {[%clk 0:00:16]} 43... Kf7 {[%clk 0:00:38.9]} 44.
Ra8 {[%clk 0:00:17.6]} 44... Nc2 {[%clk 0:00:36]} 45. f5 {[%clk 0:00:16.6]}
45... a3 {[%clk 0:00:30.5]} 46. g5 {[%clk 0:00:16.3]} 46... hxg5 {[%clk
0:00:24.8]} 47. hxg5 {[%clk 0:00:17.3]} 47... d4 {[%clk 0:00:21.2]} 48. Nf4
{[%clk 0:00:17.3]} 48... Bd7 {[%clk 0:00:21.6]} 49. Ra7 {[%clk 0:00:10.1]} 49...
Bxf5 {[%clk 0:00:21.6]} 50. Rxb7+ {[%clk 0:00:11.6]} 50... Kf8 {[%clk
0:00:20.5]} 51. Ra7 {[%clk 0:00:12.4]} 51... Ke8 {[%clk 0:00:18.8]} 52. g6
{[%clk 0:00:12.7]} 52... Kd8 {[%clk 0:00:17.1]} 53. Kh4 {[%clk 0:00:13.1]} 53...
Bd7 {[%clk 0:00:16.9]} 54. Nd5 {[%clk 0:00:10.4]} 54... Ke8 {[%clk 0:00:15.4]}
55. Ra8+ {[%clk 0:00:10.2]} 55... Bc8 {[%clk 0:00:16]} 56. Rxc8+ {[%clk
0:00:11.4]} 56... Kd7 {[%clk 0:00:17]} 57. Rxc2 {[%clk 0:00:13]} 57... Kd6
{[%clk 0:00:17.8]} 58. Nb4 {[%clk 0:00:13.9]} 1-0

[Event "*** Titled Tuesday Blitz"]
[Site "Chess.com"]
[Date "2019.02.05"]
[Round "3"]
[White "dmosesov"]
[Black "psychokiller48"]
[Result "0-1"]
[WhiteElo "2353"]
[BlackElo "2605"]
[TimeControl "180+2"]
[EndTime "13:37:48 PST"]
[Termination "psychokiller48 won by resignation"]

1. e4 {[%clk 0:03:01.9]} 1... e5 {[%clk 0:03:00.3]} 2. Nf3 {[%clk 0:03:02.9]}
2... Nc6 {[%clk 0:03:01.4]} 3. Bc4 {[%clk 0:03:00.7]} 3... Bc5 {[%clk 0:03:01]}
4. c3 {[%clk 0:03:02]} 4... Nf6 {[%clk 0:03:01.6]} 5. d3 {[%clk 0:03:03.4]} 5...
a6 {[%clk 0:03:01.6]} 6. O-O {[%clk 0:03:04.4]} 6... d6 {[%clk 0:03:02.2]} 7. d4
{[%clk 0:03:04.4]} 7... Ba7 {[%clk 0:02:58]} 8. dxe5 {[%clk 0:02:55.9]} 8...
dxe5 {[%clk 0:02:54.8]} 9. Qxd8+ {[%clk 0:02:56.5]} 9... Nxd8 {[%clk 0:02:56.6]}
10. Nxe5 {[%clk 0:02:53.9]} 10... Nxe4 {[%clk 0:02:57.4]} 11. Nd2 {[%clk
0:02:53.3]} 11... Nd6 {[%clk 0:02:56.8]} 12. Bb3 {[%clk 0:02:53.8]} 12... Be6
{[%clk 0:02:54.1]} 13. Bxe6 {[%clk 0:02:51.7]} 13... Nxe6 {[%clk 0:02:56]} 14.
Ndc4 {[%clk 0:02:53.2]} 14... Nxc4 {[%clk 0:02:54.4]} 15. Nxc4 {[%clk
0:02:55.1]} 15... O-O-O {[%clk 0:02:55.2]} 16. Be3 {[%clk 0:02:50.9]} 16... Bxe3
{[%clk 0:02:55.6]} 17. Nxe3 {[%clk 0:02:52.8]} 17... Rd2 {[%clk 0:02:55.6]} 18.
Nc4 {[%clk 0:02:54.1]} 18... Rd5 {[%clk 0:02:53.1]} 19. Ne3 {[%clk 0:02:53.3]}
19... Rd3 {[%clk 0:02:48.8]} 20. Rfd1 {[%clk 0:02:52]} 20... Rhd8 {[%clk
0:02:50.2]} 21. Rxd3 {[%clk 0:02:50.6]} 21... Rxd3 {[%clk 0:02:52.1]} 22. Kf1
{[%clk 0:02:52.2]} 22... Rd2 {[%clk 0:02:50.6]} 23. Nc4 {[%clk 0:02:52.9]} 23...
Rc2 {[%clk 0:02:51.9]} 24. Rb1 {[%clk 0:02:44.6]} 24... Nf4 {[%clk 0:02:39.6]}
25. Ne3 {[%clk 0:02:39.3]} 25... Rd2 {[%clk 0:02:39.2]} 26. Nc4 {[%clk
0:02:40.2]} 26... Rd5 {[%clk 0:02:30.4]} 27. g3 {[%clk 0:02:38.5]} 27... Ne6
{[%clk 0:02:29.4]} 28. Ne3 {[%clk 0:02:35.1]} 28... Rd7 {[%clk 0:02:28.2]} 29.
Ke2 {[%clk 0:02:34.8]} 29... b5 {[%clk 0:02:24.8]} 30. Rd1 {[%clk 0:02:27.1]}
30... Rxd1 {[%clk 0:02:24.6]} 31. Kxd1 {[%clk 0:02:29]} 31... Kd7 {[%clk
0:02:24.4]} 32. Kd2 {[%clk 0:02:29.2]} 32... Kd6 {[%clk 0:02:25.6]} 33. Kd3
{[%clk 0:02:27.9]} 33... g6 {[%clk 0:02:25.8]} 34. f4 {[%clk 0:02:26.7]} 34...
f5 {[%clk 0:02:24.7]} 35. b4 {[%clk 0:02:27.7]} 35... c5 {[%clk 0:02:21.7]} 36.
a3 {[%clk 0:02:24.8]} 36... c4+ {[%clk 0:02:15.2]} 37. Ke2 {[%clk 0:02:25.8]}
37... Nc7 {[%clk 0:01:59.7]} 38. Kf3 {[%clk 0:02:23.6]} 38... h5 {[%clk
0:01:57]} 39. h3 {[%clk 0:02:22]} 39... Ne8 {[%clk 0:01:56.5]} 40. g4 {[%clk
0:02:21.5]} 40... fxg4+ {[%clk 0:01:53.1]} 41. hxg4 {[%clk 0:02:23.4]} 41... Nf6
{[%clk 0:01:48.2]} 42. gxh5 {[%clk 0:02:16.9]} 42... gxh5 {[%clk 0:01:37]} 43.
Nf5+ {[%clk 0:02:05.8]} 43... Ke6 {[%clk 0:01:38]} 44. Nd4+ {[%clk 0:01:50.6]}
44... Kf7 {[%clk 0:01:38.2]} 45. f5 {[%clk 0:01:45.8]} 45... Nd5 {[%clk
0:01:24.9]} 46. Ne2 {[%clk 0:01:45.6]} 46... Kf6 {[%clk 0:00:42.1]} 47. Ke4
{[%clk 0:01:45.2]} 47... Ne7 {[%clk 0:00:37.6]} 48. Nd4 {[%clk 0:00:10.3]} 48...
h4 {[%clk 0:00:35.8]} 49. Kf3 {[%clk 0:00:11]} 49... Nxf5 {[%clk 0:00:33.9]} 50.
Nc6 {[%clk 0:00:11.6]} 50... Ne7 {[%clk 0:00:28.6]} 51. Nb8 {[%clk 0:00:10.8]}
51... Nd5 {[%clk 0:00:29.8]} 52. Nxa6 {[%clk 0:00:11.8]} 52... Nxc3 {[%clk
0:00:30.9]} 53. Nc7 {[%clk 0:00:12.7]} 53... Ke7 {[%clk 0:00:21.6]} 54. Kg4
{[%clk 0:00:13]} 54... Kd7 {[%clk 0:00:20.3]} 55. Na6 {[%clk 0:00:14.1]} 55...
Na4 {[%clk 0:00:21.4]} 56. Kxh4 {[%clk 0:00:14.3]} 56... Kc6 {[%clk 0:00:21.2]}
57. Kg3 {[%clk 0:00:13.1]} 57... Kb7 {[%clk 0:00:18.7]} 58. Nc5+ {[%clk
0:00:11.4]} 58... Nxc5 {[%clk 0:00:20.1]} 59. bxc5 {[%clk 0:00:13.3]} 59... c3
{[%clk 0:00:21.2]} 0-1